bitfinex-derivatives/quotes_ETHF0:USTF0_20210406
["timestamp","ask_amount","ask_price","bid_price","bid_amount"]
[1617690140427,57.3339,2120.1,2119.6,5.86]
[1617690140628,57.3339,2120.1,2120.0,5.76]
[1617690140828,57.3339,2120.1,2119.8,5.87]
[1617690141130,2.90695,2120.2,2120.0,5.89]
[1617690141629,2.90695,2120.2,2119.9,5.89]
[1617690141630,5.53505,2120.2,2119.9,5.89]
[1617690141829,5.53505,2120.2,2120.1,5.58]
[1617690142028,5.53505,2120.2,2120.0,5.91]
[1617690142430,64.7906,2120.1,2119.4,3.11]
[1617690142630,64.7906,2120.1,2119.2,2.90695]
[1617690142931,67.1404,2119.6,2119.5,5.73]
[1617690143230,67.1404,2119.6,2119.3,5.75]
[1617690143429,67.1404,2119.6,2119.2,2.90695]
[1617690143630,67.1404,2119.6,2119.5,5.91]
[1617690143831,67.1404,2119.6,2119.3,5.84]
[1617690144032,67.1404,2119.6,2119.2,2.90695]
[1617690144232,67.1404,2119.6,2119.5,5.65]
[1617690144431,67.1404,2119.6,2119.3,5.77]
[1617690144731,67.1404,2119.6,2119.5,5.78]
[1617690145133,67.1404,2119.6,2119.3,5.7]
[1617690145334,67.1404,2119.6,2119.5,5.71]
[1617690145834,70.04735,2119.6,2119.3,5.87]
[1617690146336,70.04735,2119.6,2119.5,5.91]
[1617690146534,70.04735,2119.6,2119.3,5.74]
[1617690146935,70.04735,2119.6,2119.5,5.81]
[1617690147234,70.04735,2119.6,2119.3,5.67]
[1617690147434,70.04735,2119.6,2119.5,5.73]
[1617690147839,70.04735,2119.6,2119.3,5.67]
[1617690148135,70.04735,2119.6,2119.5,5.67]
[1617690148537,70.04735,2119.6,2119.3,5.9]
[1617690148839,70.04735,2119.6,2119.5,5.71]
[1617690149338,70.04735,2119.6,2119.3,5.65]
[1617690149538,70.04735,2119.6,2119.5,5.8]
[1617690149739,70.04735,2119.6,2119.3,5.82]
[1617690150140,70.04735,2119.6,2119.5,5.89]
[1617690150340,70.04735,2119.6,2119.3,5.71]
[1617690158952,5.24705,2119.6,2119.3,5.71]
[1617690159352,5.24705,2119.6,2119.2,5.7]
[1617690159552,59.6319,2119.3,2119.2,5.7]
[1617690159751,59.6319,2119.3,2118.2,12.5611]
[1617690159956,59.6319,2119.3,2119.2,5.55]
[1617690160252,32.9524,2120.1,2118.6,2.90695]
[1617690160627,2.4043,2119.6,2119.2,5.65]
[1617690160775,72.1277,2119.5,2119.2,5.65]
[1617690160975,72.1277,2119.5,2118.8,5.71]
[1617690161186,72.1277,2119.5,2119.3,5.71]
[1617690161453,72.1277,2119.5,2118.6,2.90695]
[1617690161694,72.1277,2119.5,2118.9,5.82]
[1617690161853,30.0,2120.1,2119.4,5.87]
[1617690162057,13.0,2119.5,2119.1,2.90695]
[1617690162264,13.0,2119.5,2119.4,2.7976]
[1617690162656,13.0,2119.5,2119.4,8.5376]
[1617690163757,2.6248,2119.5,2119.4,10.5376]
[1617690163959,2.6248,2119.5,2119.4,13.44455]
[1617690164160,2.90695,2120.0,2119.4,13.44455]
[1617690166085,56.75655,2120.0,2119.9,2.90695]
[1617690166463,56.75655,2120.0,2119.9,8.65695]
[1617690175072,56.75655,2120.0,2119.9,5.75]
[1617690175673,56.75655,2120.0,2118.9,7.84]
[1617690175873,56.75655,2120.0,2119.9,5.8]
[1617690176073,2.90695,2120.0,2119.7,2.90695]
[1617690176476,2.90695,2120.0,2119.9,5.71]
[1617690176676,2.90695,2120.0,2119.8,3.38]
[1617690176879,2.90695,2120.0,2119.7,2.90695]
[1617690177078,2.90695,2120.0,2119.9,8.5674]
[1617690177279,2.90695,2120.0,2119.9,2.7174]
[1617690177578,2.90695,2120.0,2119.9,8.4574]
[1617690179380,2.90695,2120.0,2119.9,5.74]
[1617690179881,2.90695,2120.0,2119.7,2.90695]
[1617690179882,2.90695,2120.0,2119.8,5.77]
[1617690180179,2.90695,2120.0,2119.9,5.69]
[1617690180379,2.90695,2120.0,2119.8,5.74]
[1617690180780,2.90695,2120.0,2119.9,5.69]
[1617690180980,2.90695,2120.0,2119.8,5.88]
[1617690181279,2.90695,2120.0,2119.9,5.87]
[1617690181580,2.90695,2120.0,2119.8,5.69]
[1617690181982,2.90695,2120.0,2119.9,5.74]
[1617690182222,2.90695,2120.0,2119.8,5.84]
[1617690182481,2.90695,2120.0,2119.9,5.83]
[1617690182882,2.90695,2120.0,2119.8,5.71]
[1617690183182,2.90695,2120.0,2119.9,5.69]
[1617690183442,2.90695,2120.0,2119.7,5.02455]
[1617690183682,2.90695,2120.0,2119.8,5.88086589]
[1617690183884,2.90695,2120.0,2119.9,5.8]
[1617690184083,2.90695,2120.0,2119.9,0.21086561]
[1617690184484,2.90695,2120.0,2119.9,5.78]
[1617690184984,2.90695,2120.0,2119.9,0.2107289]
[1617690185384,2.90695,2120.0,2119.9,5.9207289]
[1617690189288,61.0982,2120.7,2119.9,5.9207289]
[1617690189594,68.3025,2121.4,2119.9,5.9207289]
[1617690189789,32.0,2122.4,2120.0,2.0]
[1617690189989,100.2864,2122.4,2120.0,2.21070549]
[1617690190190,100.2864,2122.4,2120.9,2.90695]
[1617690190590,100.2864,2122.4,2121.0,5.76]
[1617690191792,98.2864,2122.4,2121.0,5.76]
[1617690191993,30.0,2122.4,2121.0,5.76]
[1617690192308,30.0,2122.4,2121.8,5.89895]
[1617690192692,30.0,2122.4,2121.9,5.75]
[1617690193292,3.0,2122.5,2121.9,5.75]
[1617690194160,3.0,2122.5,2122.1,2.90695]
[1617690194742,3.0,2122.5,2122.2,5.89]
[1617690196093,1.0,2122.5,2122.4,2.90695]
[1617690196395,3.0,2122.5,2122.4,5.00335]
[1617690196593,2.0,2122.5,2122.4,10.68335]
[1617690198098,3.0,2122.5,2122.4,10.68335]
[1617690203001,3.0,2122.5,2122.4,12.68335]
[1617690203299,3.0,2122.5,2122.4,10.68335]
[1617690216158,3.0,2122.5,2122.4,8.58695]
[1617690216159,5.9653,2122.5,2122.4,8.58695]
[1617690220622,5.9653,2122.5,2122.4,5.68]
[1617690221023,5.9653,2122.5,2121.2,5.85]
[1617690221427,5.9653,2122.5,2122.4,5.68]
[1617690221625,5.9653,2122.5,2121.2,7.87]
[1617690221825,5.9653,2122.5,2121.3,5.8]
[1617690222025,5.9653,2122.5,2122.4,5.86]
[1617690222431,5.9653,2122.5,2122.4,2.90695]
[1617690222827,5.9653,2122.5,2122.4,8.58695]
[1617690223027,3.0,2122.5,2122.4,8.58695]
[1617690229113,3.0,2122.5,2122.4,5.68]
[1617690229240,3.947,2122.5,2122.4,5.68]
[1617690229616,3.947,2122.5,2121.2,5.81]
[1617690229806,3.947,2122.5,2121.1,5.84]
[1617690229807,2.0,2122.4,2121.1,5.84]
[1617690229992,2.0,2122.4,2120.4,3.12]
[1617690230140,56.4744,2122.3,2121.3,5.77]
[1617690230473,4.95045,2121.4,2121.2,8.72695]
[1617690230675,4.95045,2121.4,2121.2,2.90695]
[1617690230863,4.95045,2121.4,2121.3,1.05]
[1617690232072,2.90695,2121.4,2121.3,1.05]
[1617690256082,67.07875,2121.4,2121.3,1.05]
[1617690257374,67.07875,2121.4,2120.3,5.75]
[1617690257679,67.07875,2121.4,2121.3,5.87]
[1617690257878,67.07875,2121.4,2120.4,0.21004162]
[1617690258076,67.07875,2121.4,2120.5,2.69]
[1617690258277,2.90695,2121.4,2120.5,2.69]
[1617690258477,54.3188,2121.2,2120.1,5.7]
[1617690258677,54.3188,2121.2,2120.4,5.6]
[1617690258879,54.3188,2121.2,2121.0,2.90695]
[1617690259277,54.3188,2121.2,2121.1,0.11]
[1617690259477,2.2627,2121.5,2121.1,0.11]
[1617690259678,73.3819,2121.5,2121.1,0.11]
[1617690260979,2.90695,2121.2,2121.1,0.11]
[1617690264282,2.90695,2121.2,2120.2,5.73]
[1617690264682,2.90695,2121.2,2121.1,5.67]
[1617690264984,2.90695,2121.2,2120.5,2.90695]
[1617690265384,2.90695,2121.2,2121.1,5.85]
[1617690265685,2.90695,2121.2,2120.6,0.15]
[1617690265884,2.90695,2121.2,2121.1,5.81]
[1617690266186,2.90695,2121.2,2120.6,5.86]
[1617690266586,2.90695,2121.2,2121.1,5.75]
[1617690266789,2.90695,2121.2,2120.5,2.90695]
[1617690266790,2.90695,2121.2,2120.6,5.73]
[1617690266986,103.3819,2121.5,2120.6,5.73]
[1617690267190,103.3819,2121.5,2121.1,5.81]
[1617690267388,103.3819,2121.5,2120.5,2.90695]
[1617690267685,103.3819,2121.5,2120.6,5.75]
[1617690268891,2.90695,2120.7,2120.6,5.75]
[1617690283702,65.8483,2120.8,2120.6,5.75]
[1617690284105,65.8483,2120.8,2120.0,5.8]
[1617690284318,65.8483,2120.8,2119.9,0.55]
[1617690284504,65.8483,2120.8,2119.8,4.9668456]
[1617690284905,65.8483,2120.8,2119.9,5.69]
[1617690285112,65.8483,2120.8,2119.9,5.90003032]
[1617690285307,65.8483,2120.8,2120.3,2.90695]
[1617690285707,65.8483,2120.8,2120.4,5.86]
[1617690287407,5.51335,2120.5,2120.4,5.86]
[1617690289708,2.90695,2120.5,2120.4,5.86]
[1617690290708,67.57695,2120.5,2120.4,5.86]
[1617690290911,64.67,2120.5,2120.4,5.86]
[1617690291409,67.57695,2120.5,2120.3,2.90695]
[1617690291609,67.57695,2120.5,2120.4,5.69]
[1617690292010,67.57695,2120.5,2120.3,2.90695]
[1617690292210,67.57695,2120.5,2120.4,5.73]
[1617690299415,64.67,2120.5,2120.4,5.73]
[1617690299717,64.67,2120.5,2120.0,5.9]
[1617690299914,64.67,2120.5,2120.4,2.90695]
[1617690300315,64.67,2120.5,2120.4,8.71695]
[1617690302015,67.57695,2120.5,2120.4,8.71695]
[1617690302717,2.90695,2120.5,2120.4,8.71695]
[1617690304017,66.1836,2121.6,2120.4,11.01015]
[1617690306020,66.1836,2121.6,2121.2,2.90695]
[1617690306223,66.1836,2121.6,2121.2,5.15355]
[1617690306421,66.1836,2121.6,2121.3,5.73]
[1617690307322,3.0,2122.5,2121.3,5.73]
[1617690307529,57.8458,2122.5,2121.3,5.73]
[1617690307926,57.8458,2122.5,2121.9,2.90695]
[1617690308126,57.8458,2122.5,2121.9,5.79995]
[1617690308325,57.8458,2122.5,2122.0,5.83]
[1617690308527,60.7767,2122.5,2122.0,5.83]
[1617690308729,89.8458,2122.5,2122.0,5.83]
[1617690310033,2.90695,2122.1,2122.0,5.83]
[1617690312134,60.38235,2122.1,2122.0,5.83]
[1617690313336,75.38235,2122.1,2122.0,5.83]
[1617690315639,75.38235,2122.1,2121.7,5.86]
[1617690316042,72.4754,2122.1,2122.0,5.89]
[1617690316265,72.4754,2122.1,2121.8,5.83]
[1617690316540,72.4754,2122.1,2121.5,2.89]
[1617690316740,72.4754,2122.1,2122.0,5.9]
[1617690316940,72.4754,2122.1,2121.4,2.90695]
[1617690317140,72.4754,2122.1,2121.5,5.89]
[1617690317340,72.4754,2122.1,2122.0,5.79]
[1617690317542,72.4754,2122.1,2121.4,2.90695]
[1617690317740,72.4754,2122.1,2121.5,5.84]
[1617690318042,2.90695,2121.6,2121.5,5.84]
[1617690319041,2.90695,2121.6,2120.9,10.76153144]
[1617690319241,2.90695,2121.6,2121.5,5.76]
[1617690319641,2.90695,2121.6,2121.0,5.75]
[1617690319940,2.90695,2121.6,2120.8,4.98164632]
[1617690319941,2.90695,2121.6,2121.5,5.7]
[1617690320143,2.90695,2121.6,2121.0,2.90695]
[1617690320342,2.90695,2121.6,2121.1,5.47]
[1617690320541,2.90695,2121.6,2121.0,2.90695]
[1617690320943,2.90695,2121.6,2121.1,5.76]
[1617690321144,56.8448,2121.2,2121.1,5.76]
[1617690322144,59.75175,2121.2,2121.1,5.76]
[1617690324663,59.75175,2121.2,2121.1,6.7024]
[1617690325106,59.75175,2121.2,2121.1,5.76]
[1617690325752,56.8448,2121.2,2121.1,5.76]
[1617690326451,2.90695,2121.4,2121.1,8.2058]
[1617690328155,2.90695,2121.4,2121.3,2.90695]
[1617690328672,2.90695,2121.4,2121.3,8.71695]
[1617690330659,2.90695,2121.4,2121.3,10.81715]
[1617690333259,2.90695,2121.4,2121.3,8.71695]
[1617690333959,2.90695,2121.4,2121.3,5.81]
[1617690339767,2.90695,2121.4,2121.3,8.3334]
[1617690340969,2.90695,2121.4,2121.3,5.81]
[1617690343674,2.90695,2121.4,2121.3,10.79487664]
[1617690343874,2.90695,2121.4,2121.3,12.88517664]
[1617690344074,2.90695,2121.4,2121.3,7.9003]
[1617690344375,2.90695,2121.4,2121.3,13.9961164]
[1617690348477,2.90695,2121.4,2121.3,7.9003]
[1617690349678,2.90695,2121.4,2121.3,13.99624754]
[1617690350078,2.90695,2121.4,2121.3,7.9003]
[1617690354783,68.551,2121.8,2121.3,7.9003]
[1617690355083,2.90695,2121.8,2121.3,7.9003]
[1617690355283,2.90695,2121.8,2121.4,4.98324426]
[1617690355685,2.90695,2121.8,2121.5,10.77318407]
[1617690356084,2.90695,2121.8,2121.5,4.98318407]
[1617690356384,2.90695,2121.8,2121.6,5.9]
[1617690356887,2.90695,2121.8,2121.7,2.90695]
[1617690357288,2.90695,2121.8,2121.7,8.74695]
[1617690372202,15.0,2122.1,2121.7,5.84]
[1617690372602,15.0,2122.1,2121.5,5.73]
[1617690372902,15.0,2122.1,2121.8,5.71]
[1617690373304,15.0,2122.1,2121.4,2.0]
[1617690373305,15.0,2122.1,2122.0,2.90695]
[1617690373702,15.0,2122.1,2122.0,8.70695]
[1617690374802,15.0,2122.1,2122.0,5.8]
[1617690375202,15.0,2122.1,2121.5,5.93]
[1617690375406,15.0,2122.1,2122.0,2.90695]
[1617690375603,15.0,2122.1,2122.0,8.63695]
[1617690375804,15.0,2122.1,2122.0,2.90695]
[1617690376105,15.0,2122.1,2122.0,8.72695]
[1617690377407,17.90695,2122.1,2122.0,8.72695]
[1617690384824,17.90695,2122.1,2122.0,11.16895]
[1617690392233,15.0,2122.1,2122.0,11.16895]
[1617690392433,15.0,2122.1,2122.0,16.1513007]
[1617690393132,15.0,2122.1,2122.0,11.16895]
[1617690395843,15.0,2122.1,2122.0,8.72695]
[1617690412658,15.0,2122.1,2122.0,5.82]
[1617690413058,15.0,2122.1,2121.9,5.83]
[1617690413357,15.0,2122.1,2122.0,8.66695]
[1617690413760,15.0,2122.1,2122.0,2.90695]
[1617690413963,15.0,2122.1,2122.0,8.62695]
[1617690417564,15.0,2122.1,2122.0,5.72]
[1617690418066,15.0,2122.1,2122.0,8.62695]
[1617690432388,15.0,2122.1,2122.0,13.61696619]
[1617690439896,15.0,2122.1,2122.0,8.62695]
[1617690440796,15.0,2122.1,2122.0,5.72]
[1617690441195,15.0,2122.1,2122.0,8.62695]
[1617690444500,15.0,2122.1,2122.0,5.72]
[1617690447309,15.0,2122.1,2122.0,8.62695]
[1617690449804,15.0,2122.1,2122.0,5.72]
[1617690451504,15.0,2122.1,2122.0,8.62695]
[1617690453308,15.0,2122.1,2122.0,5.72]
[1617690453808,15.0,2122.1,2122.0,8.62695]
[1617690454914,15.0,2122.1,2122.0,5.72]
[1617690456411,15.0,2122.1,2122.0,8.62695]
[1617690456616,17.8183,2122.1,2122.0,8.62695]
[1617690456813,17.79804381,2122.1,2122.0,8.62695]
[1617690457418,17.79804381,2122.1,2122.0,13.62018033]
[1617690458215,83.64464381,2122.1,2122.0,13.62018033]
[1617690458437,86.55159381,2122.1,2122.0,13.62018033]
[1617690464022,86.55159381,2122.1,2122.0,16.54788033]
[1617690464624,86.55159381,2122.1,2122.0,11.55465]
[1617690464823,20.70499381,2122.1,2122.0,11.55465]
[1617690465024,17.88669381,2122.1,2122.0,11.55465]
[1617690466629,17.88669381,2122.1,2122.0,16.54898588]
[1617690466832,17.88669381,2122.1,2122.0,11.55465]
[1617690467733,88.29319381,2122.1,2122.0,11.55465]
[1617690467935,88.29319381,2122.1,2122.0,8.62695]
[1617690468735,88.29319381,2122.1,2122.0,13.62170591]
[1617690469937,88.29319381,2122.1,2122.0,8.62695]
[1617690470839,88.29319381,2122.1,2122.0,11.06935]
[1617690473043,88.29319381,2122.1,2122.0,17.17645738]
[1617690474645,85.38624381,2122.1,2122.0,14.26950738]
[1617690474945,14.97974381,2122.1,2122.0,14.26950738]
[1617690475245,14.97974381,2122.1,2122.0,17.17645738]
[1617690483163,14.97974381,2122.1,2122.0,11.06935]
[1617690484686,14.97974381,2122.1,2122.0,13.06935]
[1617690485468,14.97974381,2122.1,2122.0,20.29085978]
[1617690487371,14.97974381,2122.1,2122.0,20.50213586]
[1617690487576,14.97974381,2122.1,2122.0,13.28062608]
[1617690488074,3.0,2122.4,2122.0,13.28062608]
[1617690488473,59.2402,2124.5,2122.0,13.28062608]
[1617690488675,30.0,2125.1,2122.2,9.25873604]
[1617690488915,94.7064,2125.1,2122.3,2.0]
[1617690489100,94.7064,2125.1,2123.5,7.57876743]
[1617690489406,94.7064,2125.1,2123.9,2.90695]
[1617690489787,2.0,2125.0,2123.9,8.75695]
[1617690491278,16.90695,2124.0,2123.9,8.75695]
[1617690495409,14.0,2124.0,2123.9,8.75695]
[1617690511716,12.5994,2124.0,2123.9,8.75695]
[1617690513016,11.6549,2124.0,2123.9,8.75695]
[1617690533249,11.5452,2124.0,2123.9,8.75695]
[1617690533551,11.4392,2124.0,2123.9,8.75695]
[1617690533750,11.4392,2124.0,2123.9,10.75695]
[1617690538552,11.2456,2124.0,2123.9,10.75695]
[1617690542055,11.137,2124.0,2123.9,10.75695]
[1617690547179,11.137,2124.0,2123.9,8.75695]
[1617690547363,88.2888,2124.0,2123.9,8.75695]
[1617690547664,88.7888,2124.0,2123.9,8.75695]
[1617690548463,11.637,2124.0,2123.9,8.75695]
[1617690553775,11.637,2124.0,2123.9,11.37325]
[1617690554178,9.2575,2124.0,2123.9,11.37325]
[1617690567905,9.2575,2124.0,2123.9,17.45472613]
[1617690568601,9.0135,2124.0,2123.9,17.45472613]
[1617690568801,8.9555,2124.0,2123.9,17.45472613]
[1617690569003,8.4555,2124.0,2123.9,17.45472613]
[1617690570303,8.0125,2124.0,2123.9,17.45472613]
[1617690570904,7.2101,2124.0,2123.9,17.45472613]
[1617690571405,7.1136,2124.0,2123.9,17.45472613]
[1617690573611,7.1136,2124.0,2123.9,17.66296336]
[1617690574414,7.0479,2124.0,2123.9,17.66296336]
[1617690575014,7.0479,2124.0,2123.9,11.58148723]
[1617690575313,7.0479,2124.0,2123.9,17.66340409]
[1617690577918,6.2596,2124.0,2123.9,19.66340409]
[1617690578419,5.9398,2124.0,2123.9,13.58148723]
[1617690578718,2.732,2124.0,2123.9,13.58148723]
[1617690581223,15.732,2124.0,2123.9,13.58148723]
[1617690583328,14.7823,2124.0,2123.9,13.58148723]
[1617690584531,13.8526,2124.0,2123.9,13.58148723]
[1617690584732,12.9272,2124.0,2123.9,13.58148723]
[1617690585534,12.0072,2124.0,2123.9,13.58148723]
[1617690585936,11.0772,2124.0,2123.9,13.58148723]
[1617690586239,9.9035,2124.0,2123.9,13.58148723]
[1617690586444,0.5,2125.0,2123.9,13.58148723]
[1617690586853,0.5,2125.0,2124.9,4.97386262]
[1617690587042,67.1695,2127.1,2125.0,2.0]
[1617690587441,2.0,2127.1,2125.1,5.87]
[1617690588064,2.90695,2126.3,2125.8,2.90695]
[1617690588256,2.90695,2126.3,2125.8,5.39865]
[1617690588455,2.90695,2126.3,2125.8,11.25865]
[1617690590048,2.90695,2126.3,2126.2,2.90695]
[1617690590451,2.90695,2126.3,2126.2,8.78695]
[1617690590949,2.90695,2126.3,2126.2,7.78695]
[1617690600659,2.90695,2126.3,2126.2,5.88]
[1617690601058,2.90695,2126.3,2125.3,5.85]
[1617690601459,2.90695,2126.3,2126.2,5.73]
[1617690601663,2.90695,2126.3,2125.3,0.9431]
[1617690601664,2.90695,2126.3,2125.4,5.29]
[1617690602066,2.90695,2126.3,2126.2,5.77]
[1617690602261,2.90695,2126.3,2126.1,2.90695]
[1617690602567,5.47795,2126.3,2126.1,2.90695]
[1617690602769,5.47795,2126.3,2126.2,5.84]
[1617690603364,5.47795,2126.3,2125.2,4.96548858]
[1617690603365,5.47795,2126.3,2125.3,5.64]
[1617690603664,5.47795,2126.3,2126.2,5.67]
[1617690604064,5.47795,2126.3,2125.3,5.73]
[1617690604264,2.571,2126.3,2126.2,5.65]
[1617690604566,2.571,2126.3,2126.1,2.90695]
[1617690604967,2.571,2126.3,2126.2,5.8]
[1617690605865,2.0,2126.4,2126.2,5.8]
[1617690606166,2.0,2126.9,2126.2,5.8]
[1617690606368,2.90695,2126.3,2126.2,5.8]
[1617690608973,2.90695,2126.3,2125.5,5.71]
[1617690609272,2.90695,2126.3,2126.2,5.71]
[1617690609676,2.90695,2126.3,2125.6,5.7]
[1617690609874,2.90695,2126.3,2126.2,5.0]
[1617690610274,2.90695,2126.3,2125.7,5.89]
[1617690610475,2.0,2126.9,2126.0,2.90695]
[1617690610675,74.1603,2126.7,2126.2,4.4]
[1617690610874,74.1603,2126.7,2126.0,2.90695]
[1617690610875,2.0,2126.6,2126.1,4.1]
[1617690611275,2.0,2126.6,2126.3,4.08]
[1617690611474,2.0,2126.6,2126.1,5.71]
[1617690611875,2.0,2126.6,2126.4,5.84]
[1617690612076,2.0,2126.6,2126.1,5.64]
[1617690612675,2.90695,2126.2,2126.1,5.64]
[1617690612876,5.27565,2126.2,2126.1,5.64]
[1617690614883,7.27565,2126.2,2126.1,5.64]
[1617690615083,7.27565,2126.2,2125.1,5.64]
[1617690615296,73.1805,2125.7,2125.1,5.64]
[1617690615483,2.0828,2125.7,2125.0,0.14]
[1617690615687,2.0828,2125.7,2125.2,5.54]
[1617690615883,2.0828,2125.7,2125.0,5.7]
[1617690616285,2.0828,2125.7,2124.8,5.25116299]
[1617690616487,4.90695,2126.2,2124.9,4.96101041]
[1617690616687,2.90695,2125.8,2125.6,2.90695]
[1617690617110,2.90695,2125.8,2125.7,0.37]
[1617690617285,52.935,2126.6,2125.7,0.37]
[1617690617588,2.0,2126.9,2125.7,0.37]
[1617690617787,58.4555,2127.3,2125.7,0.37]
[1617690617986,2.0,2127.2,2125.7,0.37]
[1617690618586,2.0,2127.2,2126.7,2.90695]
[1617690618988,2.0,2127.2,2126.8,5.76]
[1617690620593,2.90695,2126.9,2126.8,5.76]
[1617690629108,2.90695,2126.9,2126.5,5.75]
[1617690629508,2.90695,2126.9,2126.4,2.90695]
[1617690629509,2.90695,2126.9,2126.8,5.72]
[1617690629708,2.90695,2126.9,2126.5,5.86]
[1617690630210,2.90695,2126.9,2126.8,5.87]
[1617690630416,2.90695,2126.9,2126.5,5.75]
[1617690630609,2.90695,2126.9,2126.8,5.77]
[1617690630809,2.90695,2126.9,2126.8,8.67695]
[1617690631109,2.90695,2126.9,2126.8,2.90695]
[1617690631408,2.90695,2126.9,2126.8,8.57695]
[1617690645522,2.90695,2126.9,2126.8,9.51005]
[1617690646123,2.90695,2126.9,2126.8,8.57695]
[1617690650727,2.0,2127.9,2126.8,5.67]
[1617690651028,2.0,2127.9,2126.5,2.9156]
[1617690651230,2.90695,2126.9,2126.8,2.90695]
[1617690651629,2.90695,2126.9,2126.8,8.61695]
[1617690654732,16.90695,2126.9,2126.8,8.61695]
[1617690664944,18.90695,2126.9,2126.8,8.61695]
[1617690665145,86.02085,2126.9,2126.8,8.61695]
[1617690666145,88.02085,2126.9,2126.8,8.61695]
[1617690667151,18.90695,2126.9,2126.8,8.61695]
[1617690669857,16.90695,2126.9,2126.8,8.61695]
[1617690676563,19.82125,2126.9,2126.8,8.61695]
[1617690681765,16.90695,2126.9,2126.8,8.61695]
[1617690683873,31.90695,2126.9,2126.8,8.61695]
[1617690685271,29.0,2126.9,2126.8,8.61695]
[1617690686104,29.0,2126.9,2126.8,11.00585]
[1617690687175,29.0,2126.9,2126.8,15.94913052]
[1617690687675,29.0,2126.9,2126.8,11.00585]
[1617690687875,29.0,2126.9,2126.8,8.61695]
[1617690693378,31.90695,2126.9,2126.8,8.61695]
[1617690697485,31.90695,2126.9,2126.8,9.56155]
[1617690698416,31.90695,2126.9,2126.8,8.61695]
[1617690705996,29.0,2126.9,2126.8,8.61695]
[1617690710800,29.0,2126.9,2126.8,13.56475967]
[1617690713707,29.0,2126.9,2126.8,8.61695]
[1617690714007,29.0,2126.9,2126.8,13.56308026]
[1617690715211,29.0,2126.9,2126.8,16.52218026]
[1617690715620,29.0,2126.9,2126.8,11.57605]
[1617690716312,29.0,2126.9,2126.8,17.62186186]
[1617690722124,29.0,2126.9,2126.8,8.61695]
[1617690723226,29.0,2126.9,2126.8,14.65866609]
[1617690724325,29.0,2126.9,2126.8,8.61695]
[1617690725727,29.0,2126.9,2126.8,14.6555863]
[1617690726029,29.0,2126.9,2126.8,8.61695]
[1617690729734,29.0,2126.9,2126.8,10.61695]
[1617690733345,29.0,2126.9,2126.8,16.65019299]
[1617690736750,29.0,2126.9,2126.8,10.61695]
[1617690741958,27.9515,2126.9,2126.8,10.61695]
[1617690757874,27.9515,2126.9,2126.8,10.81644252]
[1617690758974,30.914,2126.9,2126.8,10.81644252]
[1617690759174,30.914,2126.9,2126.8,8.61695]
[1617690760075,27.9515,2126.9,2126.8,8.61695]
[1617690762778,27.8976,2126.9,2126.8,8.61695]
[1617690765979,27.8976,2126.9,2126.8,8.81691445]
[1617690766181,27.8976,2126.9,2126.8,8.61695]
[1617690766885,27.8976,2126.9,2126.8,8.81691587]
[1617690767086,27.8976,2126.9,2126.8,8.61695]
[1617690771888,27.8976,2126.9,2126.8,14.63650733]
[1617690772693,28.8379,2126.9,2126.8,15.58230733]
[1617690772992,28.7339,2126.9,2126.8,15.58230733]
[1617690773905,27.7936,2126.9,2126.8,15.58230733]
[1617690775495,27.7936,2126.9,2126.8,9.56275]
[1617690775995,30.4032,2126.9,2126.8,9.56275]
[1617690776397,30.2792,2126.9,2126.8,9.56275]
[1617690779202,31.2792,2126.9,2126.8,9.56275]
[1617690780602,31.2792,2126.9,2126.8,9.7630183]
[1617690781101,31.2792,2126.9,2126.8,8.8172183]
[1617690781524,31.2792,2126.9,2126.8,8.61695]
[1617690784903,28.6696,2126.9,2126.8,8.61695]
[1617690785404,28.6696,2126.9,2126.8,8.81728045]
[1617690786504,31.4849,2126.9,2126.8,8.81728045]
[1617690787203,31.4849,2126.9,2126.8,14.63838377]
[1617690790410,31.4849,2126.9,2126.8,8.61695]
[1617690791311,31.4849,2126.9,2126.8,13.53410259]
[1617690791911,31.4849,2126.9,2126.8,8.61695]
[1617690792312,31.4849,2126.9,2126.8,14.63115528]
[1617690792526,31.4849,2126.9,2126.8,8.61695]
[1617690793329,31.4849,2126.9,2126.8,13.54522816]
[1617690793714,31.4849,2126.9,2126.8,8.61695]
[1617690794546,31.4849,2126.9,2126.8,5.71]
[1617690794784,33.4849,2126.9,2126.8,5.71]
[1617690795518,33.4849,2126.9,2126.6,5.71]
[1617690796320,4.90695,2126.7,2126.6,5.71]
[1617690796522,55.0348,2126.6,2126.5,6.58695]
[1617690796721,57.0348,2126.6,2126.0,4.93478611]
[1617690796922,57.0348,2126.6,2125.8,4.93803826]
[1617690797122,57.0348,2126.6,2126.5,5.72]
[1617690797322,57.0348,2126.6,2125.9,0.07]
[1617690797623,57.0348,2126.6,2126.5,5.59]
[1617690798022,57.0348,2126.6,2125.9,3.95]
[1617690798322,57.0348,2126.6,2126.5,0.1]
[1617690798522,57.0348,2126.6,2126.4,5.81]